lending/lending_fUSD_20240417
["ID","MTS","AMOUNT","RATE_DAILY","PERIOD"]
[322840038,1713387032449,-490.93,0.0001808,2]
[322840040,1713387032458,-506.0,0.00018083,2]
[322840042,1713387032468,-407.2,0.00018234,2]
[322840044,1713387032477,-156.45,0.00018239,2]
[322840046,1713387032486,-156.45,0.00018424,2]
[322840047,1713387032495,-156.45,0.00018608,2]
[322840049,1713387032504,-114.06542446,0.000187,2]
[322840054,1713387032537,-573.93457554,0.000187,2]
[322840055,1713387032546,-152.752202,0.000188,2]
[322840057,1713387032555,-193.31322246,0.000188,2]
[322840062,1713387032589,-492.11859754,0.000188,2]
[322840064,1713387032599,-506.0,0.00018905,2]
[322840066,1713387032608,-1600.0,0.00019,2]
[322840068,1713387032617,-1148.26421799,0.00019178,2]
[322840070,1713387032629,-351.73578201,0.00019178,2]
[322840072,1713387032639,-300.0,0.00019187,2]
[322840074,1713387032648,-300.0,0.00019197,2]
[322840076,1713387032657,-150.0,0.000193,2]
[322840078,1713387032667,-3869.82317102,0.00019363,2]
[322840080,1713387032675,-1173.2532,0.00019364,2]
[322840082,1713387032684,-152.57,0.00019408,2]
[322840083,1713387032693,-162.84,0.00019408,2]
[322840084,1713387032702,-21.45908663,0.00019429,2]
[322840085,1713387032714,-242.03091337,0.00019429,2]
[322840086,1713387032723,-1755.39668663,0.00019462,2]
[322840087,1713387032735,-1042.16772,0.00019462,2]
[322840088,1713387032748,-1309.51,0.00019462,2]
[322840089,1713387032760,-1486.7837916,0.00019462,2]
[322840090,1713387032771,-647.77,0.00019462,2]
[322840091,1713387032782,-299.68,0.00019462,2]
[322840092,1713387032793,-2083.13744774,0.00019462,2]
[322840093,1713387032803,-320.8465035,0.00019462,2]
[322840094,1713387032815,-594.72461586,0.00019462,2]
[322840095,1713387032826,-404.0000001,0.00019462,2]
[322840096,1713387032837,-326.34,0.00019462,2]
[322840097,1713387032848,-420.0,0.00019462,2]
[322840098,1713387032906,-251.82359112,0.00019462,2]
[322840099,1713387032918,-308.60746084,0.00019462,2]
[322840100,1713387032930,-258.128903,0.00019462,2]
[322840101,1713387032941,-266.27999998,0.00019462,2]
[322840102,1713387032953,-752.4458828,0.00019462,2]
[322840103,1713387032965,-574.25050338,0.00019462,2]
[322840104,1713387032977,-2474.85663454,0.00019462,2]
[322840105,1713387032989,-3004.99999999,0.00019462,2]
[322840106,1713387033001,-6450.0,0.00019462,2]
[322840107,1713387033013,-2121.37763752,0.00019462,2]
[322840108,1713387033025,-1194.85289494,0.00019462,2]
[322840109,1713387033036,-3971.0701764,0.00019462,2]
[322840110,1713387033065,-286.66009093,0.00019462,2]
[322840111,1713387033077,-1450.28399832,0.00019462,2]
[322840112,1713387033090,-316.79119983,0.00019462,2]
[322840113,1713387033102,-460.48,0.00019462,2]
[322840114,1713387033114,-25808.53365393,0.00019462,2]
[322840115,1713387033124,-17200.03722261,0.00019463,2]
[322840116,1713387033135,-968.0,0.00019464,2]
[322840117,1713387033147,-461.0,0.00019464,2]
[322840118,1713387033156,-1391.0,0.00019464,2]
[322840119,1713387033166,-2292.0,0.00019464,2]
[322840120,1713387033175,-1228.0,0.00019464,2]
[322840121,1713387033185,-541.0,0.00019464,2]
[322840122,1713387033194,-1254.0,0.00019464,2]
[322840123,1713387033203,-1949.0,0.00019464,2]
[322840124,1713387033212,-257.0,0.00019464,2]
[322840125,1713387033221,-609.0,0.00019464,2]
[322840126,1713387033230,-436.0,0.00019464,2]
[322840127,1713387033240,-807.0,0.00019464,2]
[322840128,1713387033250,-399.0,0.00019464,2]
[322840129,1713387033259,-3077.0,0.00019464,2]
[322840130,1713387033269,-1472.0,0.00019464,2]
[322840131,1713387033278,-214.0,0.00019464,2]
[322840132,1713387033287,-1638.0,0.00019464,2]
[322840133,1713387033297,-1140.0,0.00019464,2]
[322840134,1713387033306,-443.0,0.00019464,2]
[322840135,1713387033315,-355.0,0.00019464,2]
[322840136,1713387033325,-1737.0,0.00019464,2]
[322840137,1713387033334,-150.0,0.00019464,2]
[322840138,1713387033343,-5721.0,0.00019464,2]
[322840139,1713387033352,-150.0,0.00019464,2]
[322840140,1713387033362,-150.0,0.00019464,2]
[322840141,1713387033371,-37635.0,0.00019464,2]
[322840142,1713387033380,-5885.0,0.00019464,2]
[322840143,1713387033392,-150.0,0.00019464,2]
[322840144,1713387033401,-1054.0,0.00019464,2]
[322840145,1713387033411,-150.0,0.00019465,2]
[322840146,1713387033420,-1407.3940954,0.00019546,2]
[322840147,1713387033429,-3382.50763203,0.00019559,2]
[322840148,1713387033439,-284.88370341,0.00019599,2]
[322840149,1713387033448,-172.37016015,0.00019599,2]
[322840150,1713387033457,-181779.07695332,0.000196,2]
[322840151,1713387033469,-10553.72704668,0.000196,2]
[322840152,1713387033478,-150.0,0.00019604,2]
[322840153,1713387033487,-150.0,0.00019618,2]
[322840154,1713387033497,-321.1014272,0.00019621,2]
[322840155,1713387033506,-1000.0,0.00019642,2]
[322840156,1713387033515,-500.0,0.00019642,2]
[322840157,1713387033524,-1362.12388342,0.00019708,2]
[322840158,1713387033534,-592.8,0.00019749,2]
[322840159,1713387033543,-204.99865098,0.0001979,2]
[322840160,1713387033552,-151.63,0.0001979,2]
[322840161,1713387033562,-59819.11895172,0.00019794,2]
[322840162,1713387033573,-30679.999987,0.00019794,2]
[322840163,1713387033587,-13125.53380091,0.00019794,2]
[322840164,1713387033598,-1125.00000012,0.00019794,2]
[322840165,1713387033609,-12770.70185429,0.00019794,2]
[322840198,1713387037874,-968.45584737,0.00019794,2]
[322840208,1713387037930,-2538.78599999,0.00019794,2]
[322840211,1713387037943,-627.36819848,0.00019794,2]
[322840214,1713387037955,-2665.75129608,0.00019794,2]
[322840215,1713387038002,-50914.88677604,0.00019794,2]
[322840216,1713387038011,-12980.6473815,0.00019794,2]
[322840217,1713387038020,-23470.3806574,0.00019794,2]
[322840218,1713387038031,-132.4434287,0.00019794,2]
[322840219,1713387038040,-304.05236644,0.000198,2]
[322840220,1713387038049,-1389.76362942,0.000198,2]
[322840221,1713387038060,-3997.10402913,0.000198,2]
[322840222,1713387038071,-128.43457625,0.000198,2]
[322840223,1713387038080,-500.0,0.000198,2]
[322840224,1713387038089,-2290.40364,0.000198,2]
[322840225,1713387038098,-150.0,0.000198,2]
[322840226,1713387038107,-1395.91194148,0.000198,2]
[322840227,1713387038118,-13713.3498527,0.000198,2]
[322840228,1713387038129,-313.18496432,0.000198,2]
[322840229,1713387038142,-3781.05560194,0.000198,2]
[322840230,1713387038153,-3303.81439647,0.000198,2]
[322840231,1713387038164,-15738.64776052,0.000198,2]
[322840232,1713387038206,-579.75993534,0.000198,2]
[322840233,1713387038217,-540.70341737,0.000198,2]
[322840234,1713387038228,-1959.74056173,0.000198,2]
[322840235,1713387038239,-3118.77046614,0.000198,2]
[322840237,1713387038295,-1283.2,0.000198,2]
[322840239,1713387038306,-6423.2968965,0.000198,2]
[322840241,1713387038317,-1681.81594384,0.000198,2]
[322840244,1713387038328,-352071.85332827,0.000198,2]
[322840246,1713387038344,-6339.3,0.000198,2]
[322840336,1713387039997,-6827.22711829,0.000198,2]
[322840337,1713387040007,-1362.12388336,0.00019816,2]
[322840338,1713387040017,-300.0,0.00019863,2]
[322840339,1713387040026,-321.10142717,0.00019877,2]
[322840340,1713387040035,-153.10486378,0.000199,2]
[322840341,1713387040044,-153.10486378,0.000199,2]
[322840342,1713387040054,-153.10486378,0.00019901,2]
[322840343,1713387040063,-150.0,0.00019908,2]
[322840344,1713387040072,-300.0,0.00019909,2]
[322840345,1713387040082,-1362.12388336,0.00019925,2]
[322840346,1713387040091,-153.10486378,0.00019963,2]
[322840347,1713387040101,-215.73970393,0.0002,2]
[322840348,1713387040110,-4493.37894948,0.0002,2]
[322840349,1713387040119,-176.0,0.0002,2]
[322840350,1713387040128,-150.01852871,0.0002,2]
[322840351,1713387040139,-150.01852871,0.0002,2]
[322840352,1713387040149,-150.01852871,0.0002,2]
[322840353,1713387040158,-150.01852871,0.0002,2]
[322840354,1713387040167,-150.01852871,0.0002,2]
[322840355,1713387040176,-150.01852871,0.0002,2]
[322840356,1713387040185,-150.01852871,0.0002,2]
[322840357,1713387040194,-150.01852871,0.0002,2]
[322840358,1713387040204,-150.01852871,0.0002,2]
[322840359,1713387040213,-150.01852871,0.0002,2]
[322840360,1713387040222,-150.01852871,0.0002,2]
[322840361,1713387040231,-150.01852871,0.0002,2]
[322840362,1713387040241,-150.01852871,0.0002,2]
[322840363,1713387040250,-150.01852871,0.0002,2]
[322840364,1713387040259,-150.01852871,0.0002,2]
[322840365,1713387040268,-150.01852871,0.0002,2]
[322840366,1713387040277,-150.01852871,0.0002,2]
[322840367,1713387040286,-150.01852871,0.0002,2]
[322840368,1713387040296,-150.01852871,0.0002,2]
[322840369,1713387040305,-150.01852871,0.0002,2]
[322840370,1713387040314,-150.01852871,0.0002,2]
[322840371,1713387040323,-150.01852871,0.0002,2]
[322840372,1713387040332,-150.01852871,0.0002,2]
[322840373,1713387040341,-150.01852871,0.0002,2]
[322840374,1713387040351,-150.01852871,0.0002,2]
[322840375,1713387040360,-150.01852871,0.0002,2]
[322840376,1713387040369,-150.01852871,0.0002,2]
[322840377,1713387040378,-150.01852871,0.0002,2]
[322840379,1713387040389,-150.01852871,0.0002,2]
[322840381,1713387040398,-150.01852871,0.0002,2]
[322840383,1713387040406,-150.01852871,0.0002,2]
[322840385,1713387040416,-150.01852871,0.0002,2]
[322840387,1713387040424,-150.01852871,0.0002,2]
[322840389,1713387040433,-150.01852871,0.0002,2]
[322840390,1713387040442,-150.01852871,0.0002,2]
[322840393,1713387040452,-150.01852871,0.0002,2]
[322840395,1713387040462,-150.01852871,0.0002,2]
[322840397,1713387040471,-150.01852871,0.0002,2]
[322840399,1713387040480,-150.01852871,0.0002,2]
[322840401,1713387040489,-150.01852871,0.0002,2]
[322840403,1713387040498,-150.01852871,0.0002,2]
[322840405,1713387040507,-150.01852871,0.0002,2]
[322840407,1713387040516,-150.01852871,0.0002,2]
[322840409,1713387040525,-150.01852871,0.0002,2]
[322840411,1713387040534,-150.01852871,0.0002,2]
[322840413,1713387040543,-150.01852871,0.0002,2]
[322840415,1713387040552,-150.01852871,0.0002,2]
[322840416,1713387040561,-150.01852871,0.0002,2]
[322840418,1713387040570,-150.01852871,0.0002,2]
[322840421,1713387040579,-150.01852871,0.0002,2]
[322840423,1713387040588,-155.0,0.0002,2]
[322840424,1713387040597,-641.27305155,0.0002,2]
[322840427,1713387040607,-1256.5732188,0.0002,2]
[322840429,1713387040616,-1765.57043751,0.00020016,2]
[322840430,1713387040625,-155.0,0.00020017,2]
[322840432,1713387040634,-155.0,0.00020017,2]
[322840434,1713387040645,-20196.34585858,0.00020018,2]
[322840437,1713387040654,-3065.67342855,0.00020019,2]
[322840439,1713387040663,-6219.13910648,0.00020019,2]
[322840441,1713387040672,-859.35539064,0.00020019,2]
[322840443,1713387040681,-155.0,0.0002002,4]
[322840445,1713387040690,-3382.50763204,0.00020024,2]
[322840447,1713387040699,-153.10486378,0.00020026,2]
[322840448,1713387040708,-1362.12388336,0.00020033,2]
[322840451,1713387040717,-537.0,0.00020045,2]
[322840453,1713387040726,-153.10486378,0.00020088,2]
[322840454,1713387040736,-82073.73,0.00020101,6]
[322840456,1713387040747,-321.10142717,0.00020133,2]
[322840459,1713387040757,-1362.12388336,0.00020141,2]
[322840461,1713387040766,-200.0,0.00020146,2]
[322840462,1713387040776,-153.10486378,0.00020151,2]
[322840464,1713387040785,-1407.3940955,0.00020172,2]
[322840466,1713387040794,-167.73,0.00020201,2]
[322840469,1713387040804,-153.10486378,0.00020213,2]
[322840470,1713387040814,-1340.85258782,0.00020217,2]
[322840472,1713387040823,-150.0,0.00020228,2]
[322840475,1713387040832,-150.0,0.00020228,2]
[322840477,1713387040842,-150.0,0.00020228,2]
[322840479,1713387040851,-150.0,0.00020228,2]
[322840481,1713387040860,-300.0,0.00020228,2]
[322840483,1713387040870,-150.0,0.00020228,2]
[322840484,1713387040881,-1362.12388336,0.0002025,2]
[322840487,1713387040893,-407.2,0.00020259,2]
[322840513,1713387041113,-153.10486378,0.00020276,2]
[322840516,1713387041143,-554.63,0.00020294,2]
[322840518,1713387041153,-150.0,0.000203,2]
[322840520,1713387041162,-200.0,0.00020314,2]
[322840522,1713387041172,-1000.0,0.00020314,2]
[322840524,1713387041182,-500.0,0.00020314,2]
[322840526,1713387041191,-200.0,0.00020314,2]
[322840528,1713387041200,-153.10486378,0.00020338,2]
[322840530,1713387041210,-490.93,0.00020344,2]
[322840532,1713387041219,-1362.12388336,0.00020358,2]
[322840534,1713387041229,-1340.85258782,0.00020388,2]
[322840536,1713387041238,-321.10142717,0.00020388,2]
[322840538,1713387041247,-826.32004515,0.000204,2]
[322840540,1713387041257,-153.10486378,0.000204,2]
[322840542,1713387041267,-153.10486378,0.00020463,2]
[322840544,1713387041277,-1362.12388336,0.00020467,2]
[322840547,1713387041287,-31845.59074703,0.000205,2]
[322840548,1713387041296,-150.0,0.000205,2]
[322840550,1713387041306,-153.10486378,0.00020525,2]
[322840552,1713387041316,-173.93804271,0.00020541,2]
[322840555,1713387041325,-1340.85258782,0.00020559,2]
[322840557,1713387041335,-1362.12388336,0.00020575,2]
[322840559,1713387041344,-153.10486378,0.00020588,2]
[322840561,1713387041354,-1000.0,0.000206,2]
[322840563,1713387041364,-321.10142717,0.00020644,2]
[322840565,1713387041373,-153.10486378,0.0002065,2]
[322840567,1713387041383,-200.0,0.00020669,2]
[322840569,1713387041393,-1000.0,0.00020669,2]
[322840571,1713387041402,-500.0,0.00020669,2]
[322840573,1713387041411,-1362.12388336,0.00020683,2]
[322840575,1713387041420,-7500.0,0.00020696,2]
[322840576,1713387041429,-782.31773617,0.00020696,2]
[322840579,1713387041439,-673.33695829,0.00020696,2]
[322840580,1713387041449,-17149.53652487,0.00020696,2]
[322840582,1713387041458,-174.24522992,0.00020696,2]
[322840583,1713387041468,-169.68459532,0.00020696,2]
[322840584,1713387041478,-153.10486378,0.00020713,2]
[322840585,1713387041490,-667.65188177,0.00020713,2]
[322840586,1713387041500,-1500.0,0.00020727,2]
[322840587,1713387041510,-1340.85258782,0.00020729,2]
[322840588,1713387041521,-150.0,0.00020733,2]
[322840589,1713387041531,-150.0,0.00020765,2]
[322840590,1713387041541,-1500.0,0.00020771,2]
[322840591,1713387041550,-683.6557,0.00020774,4]
[322840592,1713387041560,-153.10486378,0.00020775,2]
[322840593,1713387041570,-300.0,0.00020782,2]
[322840594,1713387041579,-6617.3866801,0.00020788,2]
[322840595,1713387041589,-6933.09121626,0.0002079,2]
[322840596,1713387041599,-300.0,0.0002079,2]
[322840597,1713387041608,-1362.12388336,0.00020792,2]
[322840598,1713387041618,-10300.31614224,0.00020793,2]
[322840599,1713387041627,-8450.40880633,0.00020794,2]
[322840600,1713387041637,-219.37846537,0.00020794,2]
[322840601,1713387041648,-306.82378869,0.00020794,2]
[322840602,1713387041658,-325.20065423,0.00020794,2]
[322840603,1713387041667,-184.93400872,0.00020794,2]
[322840604,1713387041677,-156.17473524,0.00020794,2]
[322840605,1713387041686,-266.93732489,0.00020794,2]
[322840606,1713387041696,-616.61601776,0.00020794,2]
[322840607,1713387041706,-365.5691864,0.00020794,2]
[322840608,1713387041715,-155.0,0.00020794,2]
[322840609,1713387041725,-342.81596001,0.00020794,2]
[322840610,1713387041735,-3718.18327738,0.00020794,2]
[322840611,1713387041748,-155.0,0.00020794,2]
[322840612,1713387041758,-160.92203808,0.00020794,2]
[322840613,1713387041768,-262.08510963,0.00020794,2]
[322840614,1713387041778,-350.28580677,0.00020794,2]
[322840615,1713387041788,-3077.5040746,0.00020794,2]
[322840616,1713387041797,-155.0,0.00020794,2]
[322840617,1713387041808,-16079.85405152,0.00020795,2]
[322840618,1713387041818,-201.18547988,0.00020795,2]
[322840619,1713387041827,-684.60282013,0.00020795,2]
[322840620,1713387041837,-155.0,0.00020795,2]
[322840621,1713387041846,-283.80896389,0.00020795,2]
[322840622,1713387041857,-4308.84092733,0.00020795,2]
[322840623,1713387041866,-204.23393614,0.00020795,2]
[322840624,1713387041876,-155.0,0.00020795,2]
[322840625,1713387041886,-155.0,0.00020795,2]
[322840626,1713387041897,-387.63477109,0.00020795,2]
[322840627,1713387041908,-1267.72235495,0.00020795,2]
[322840628,1713387041919,-1013.90044479,0.00020795,2]
[322840629,1713387041928,-165.08637651,0.00020795,2]
[322840630,1713387041938,-195.24769107,0.00020795,2]
[322840631,1713387041948,-155.319273,0.00020795,2]
[322840632,1713387041957,-155.0,0.00020795,2]
[322840633,1713387041968,-155.46859804,0.00020795,2]
[322840634,1713387041977,-157.23873025,0.00020795,2]
[322840635,1713387041987,-156.6652945,0.00020795,2]
[322840636,1713387041997,-1742.56076105,0.00020795,2]
[322840637,1713387042007,-156.40548215,0.00020795,2]
[322840638,1713387042017,-155.0,0.00020795,2]
[322840639,1713387042028,-2131.75221398,0.00020796,2]
[322840640,1713387042038,-160.38595136,0.00020796,2]
[322840641,1713387042047,-1349588.78036578,0.00020796,2]
[322840642,1713387042057,-2918.33354535,0.00020796,2]
[322840643,1713387042066,-282.295532,0.00020796,2]
[322840644,1713387042077,-282.295532,0.00020796,2]
[322840645,1713387042087,-151.0,0.00020796,2]
[322840646,1713387042097,-151.0,0.00020796,2]
[322840647,1713387042108,-151.0,0.00020796,2]
[322840648,1713387042118,-151.0,0.00020796,2]
[322840649,1713387042128,-151.0,0.00020796,2]
[322840650,1713387042138,-151.0,0.00020796,2]
[322840651,1713387042148,-153.789318,0.00020796,2]
[322840652,1713387042159,-151.0,0.00020796,2]
[322840653,1713387042169,-152.887279,0.00020796,2]
[322840654,1713387042180,-396.9,0.00020796,2]
[322840655,1713387042190,-396.9,0.00020796,2]
[322840656,1713387042202,-151.0,0.00020796,2]
[322840657,1713387042212,-151.0,0.00020796,2]
[322840658,1713387042222,-151.0,0.00020796,2]
[322840659,1713387042232,-151.0,0.00020796,2]
[322840660,1713387042242,-255.656499,0.00020796,2]
[322840661,1713387042251,-315.577388,0.00020796,2]
[322840662,1713387042261,-315.577388,0.00020796,2]
[322840663,1713387042270,-151.0,0.00020796,2]
[322840664,1713387042279,-151.0,0.00020796,2]
[322840665,1713387042289,-151.0,0.00020796,2]
[322840666,1713387042299,-151.0,0.00020796,2]
[322840667,1713387042308,-151.0,0.00020796,2]
[322840668,1713387042318,-151.0,0.00020796,2]
[322840669,1713387042328,-151.0,0.00020796,2]
[322840670,1713387042337,-151.0,0.00020796,2]
[322840671,1713387042347,-151.0,0.00020796,2]
[322840672,1713387042356,-214.63214,0.00020796,2]
[322840673,1713387042365,-214.63214,0.00020796,2]
[322840674,1713387042375,-1025.156381,0.00020796,2]
[322840675,1713387042386,-1025.156381,0.00020796,2]
[322840676,1713387042400,-151.0,0.00020796,2]
[322840677,1713387042410,-151.0,0.00020796,2]
[322840678,1713387042419,-151.0,0.00020796,2]
[322840679,1713387042428,-151.0,0.00020796,2]
[322840680,1713387042438,-151.0,0.00020796,2]
[322840681,1713387042447,-196.2,0.00020796,2]
[322840682,1713387042456,-221.074449,0.00020796,2]
[322840683,1713387042466,-221.074449,0.00020796,2]
[322840684,1713387042475,-151.0,0.00020796,2]
[322840685,1713387042485,-182.660719,0.00020796,2]
[322840686,1713387042494,-182.660719,0.00020796,2]
[322840687,1713387042504,-279.63468,0.00020796,2]
[322840688,1713387042513,-279.63468,0.00020796,2]
[322840689,1713387042523,-155.698316,0.00020796,2]
[322840690,1713387042534,-155.698316,0.00020796,2]
[322840691,1713387042544,-492223.82377371,0.00020797,2]
[322840692,1713387042554,-391.85121633,0.00020797,2]
[322840693,1713387042563,-1013.0106899,0.00020797,2]
[322840694,1713387042572,-151.0,0.00020797,2]
[322840695,1713387042581,-151.0,0.00020797,2]
[322840696,1713387042591,-151.0,0.00020797,2]
[322840697,1713387042600,-282.295532,0.00020797,2]
[322840698,1713387042609,-282.295532,0.00020797,2]
[322840699,1713387042618,-152.678158,0.00020797,2]
[322840700,1713387042627,-153.160214,0.00020797,2]
[322840701,1713387042637,-151.0,0.00020797,2]
[322840704,1713387042651,-233.5883,0.00020797,2]
[322840705,1713387042660,-151.0,0.00020797,2]
[322840707,1713387042669,-154.103665,0.00020797,2]
[322840709,1713387042679,-155.953134,0.00020797,2]
[322840710,1713387042689,-396.9,0.00020797,2]
[322840712,1713387042698,-396.9,0.00020797,2]
[322840714,1713387042707,-151.0,0.00020797,2]
[322840715,1713387042716,-151.0,0.00020797,2]
[322840716,1713387042726,-151.0,0.00020797,2]
[322840717,1713387042735,-151.0,0.00020797,2]
[322840718,1713387042748,-315.577388,0.00020797,2]
[322840719,1713387042757,-315.577388,0.00020797,2]
[322840721,1713387042767,-151.0,0.00020797,2]
[322840722,1713387042777,-151.0,0.00020797,2]
[322840724,1713387042787,-151.0,0.00020797,2]
[322840725,1713387042796,-151.0,0.00020797,2]
[322840727,1713387042805,-151.0,0.00020797,2]
[322840729,1713387042815,-151.0,0.00020797,2]
[322840731,1713387042825,-152.265441,0.00020797,2]
[322840734,1713387042833,-151.0,0.00020797,2]
[322840737,1713387042843,-151.0,0.00020797,2]
[322840740,1713387042852,-214.63214,0.00020797,2]
[322840743,1713387042861,-214.63214,0.00020797,2]
[322840745,1713387042871,-1025.156381,0.00020797,2]
[322840748,1713387042880,-1025.156381,0.00020797,2]
[322840749,1713387042891,-151.0,0.00020797,2]
[322840751,1713387042899,-151.0,0.00020797,2]
[322840752,1713387042909,-225.520168,0.00020797,2]
[322840753,1713387042918,-151.0,0.00020797,2]
[322840754,1713387042927,-154.589446,0.00020797,2]
[322840755,1713387042936,-221.074449,0.00020797,2]
[322840756,1713387042945,-221.074449,0.00020797,2]
[322840757,1713387042955,-192.546466,0.00020797,2]
[322840758,1713387042966,-182.660719,0.00020797,2]
[322840759,1713387042975,-182.660719,0.00020797,2]
[322840760,1713387042984,-151.0,0.00020797,2]
[322840761,1713387042993,-279.63468,0.00020797,2]
[322840762,1713387043003,-279.63468,0.00020797,2]
[322840763,1713387043012,-155.698316,0.00020797,2]
[322840764,1713387043022,-155.698316,0.00020797,2]
[322840765,1713387043031,-151.0,0.00020797,2]
[322840766,1713387043041,-151.0,0.00020797,2]
[322840767,1713387043050,-151.0,0.00020797,2]
[322840768,1713387043059,-251.269873,0.00020797,2]
[322840769,1713387043069,-151.0,0.00020797,2]
[322840770,1713387043078,-153.398531,0.00020797,2]
[322840771,1713387043088,-2212.815014,0.00020797,2]
[322840772,1713387043097,-2212.815014,0.00020797,2]
[322840773,1713387043106,-153.398531,0.00020797,2]
[322840774,1713387043116,-206.902305,0.00020797,2]
[322840775,1713387043126,-151.0,0.00020797,2]
[322840776,1713387043135,-151.0,0.00020797,2]
[322840777,1713387043150,-390.975907,0.00020797,2]
[322840778,1713387043160,-390.975907,0.00020797,2]
[322840779,1713387043169,-151.0,0.00020797,2]
[322840780,1713387043178,-151.0,0.00020797,2]
[322840781,1713387043187,-151.0,0.00020797,2]
[322840782,1713387043197,-151.0,0.00020797,2]
[322840783,1713387043206,-151.0,0.00020797,2]
[322840784,1713387043215,-151.0,0.00020797,2]
[322840785,1713387043224,-151.0,0.00020797,2]
[322840786,1713387043233,-151.0,0.00020797,2]
[322840787,1713387043243,-318.560075,0.00020797,2]
[322840788,1713387043252,-318.560075,0.00020797,2]
[322840789,1713387043261,-158.798036,0.00020797,2]
[322840790,1713387043270,-158.798036,0.00020797,2]
[322840791,1713387043279,-151.0,0.00020797,2]
[322840792,1713387043288,-151.0,0.00020797,2]
[322840793,1713387043297,-151.0,0.00020797,2]
[322840794,1713387043306,-153.417457,0.00020797,2]
[322840795,1713387043316,-1360.699118,0.00020797,2]
[322840796,1713387043325,-1360.699118,0.00020797,2]
[322840797,1713387043334,-151.0,0.00020797,2]
[322840798,1713387043344,-178.212069,0.00020797,2]
[322840799,1713387043354,-178.212069,0.00020797,2]
[322840800,1713387043363,-244.455005,0.00020797,2]
[322840801,1713387043373,-244.455005,0.00020797,2]
[322840802,1713387043383,-243.52693,0.00020797,2]
[322840803,1713387043396,-222.78603,0.00020797,2]
[322840804,1713387043405,-151.0,0.00020797,2]
[322840805,1713387043415,-243.52693,0.00020797,2]
[322840806,1713387043424,-222.78603,0.00020797,2]
[322840807,1713387043433,-151.0,0.00020797,2]
[322840808,1713387043442,-151.0,0.00020797,2]
[322840809,1713387043451,-151.0,0.00020797,2]
[322840810,1713387043460,-151.0,0.00020797,2]
[322840811,1713387043470,-240.913985,0.00020797,2]
[322840812,1713387043480,-240.913985,0.00020797,2]
[322840813,1713387043489,-151.0,0.00020797,2]
[322840814,1713387043499,-151.0,0.00020797,2]
[322840815,1713387043508,-151.0,0.00020797,2]
[322840816,1713387043518,-151.0,0.00020797,2]
[322840817,1713387043527,-151.0,0.00020797,2]
[322840818,1713387043536,-782.31773617,0.00020798,2]
[322840819,1713387043546,-673.33695829,0.00020798,2]
[322840820,1713387043555,-17149.53652487,0.00020798,2]
[322840821,1713387043564,-174.2452299,0.00020798,2]
[322840822,1713387043573,-500.0,0.000208,2]
[322840823,1713387043583,-500.0,0.000208,2]
[322840824,1713387043593,-150.0,0.000208,2]
[322840826,1713387043602,-370.0,0.000208,2]
[322840828,1713387043611,-188.0,0.000208,3]
[322840829,1713387043620,-150.0,0.000208,2]
[322840831,1713387043630,-1500.0,0.00020802,2]
[322840833,1713387043641,-150.0,0.00020807,2]
[322840835,1713387043650,-150.0,0.00020825,2]
[322840837,1713387043659,-153.10486378,0.00020838,2]
[322840839,1713387043669,-150.0,0.00020844,2]
[322840841,1713387043680,-150.0,0.00020862,2]
[322840842,1713387043689,-150.0,0.00020866,2]
[322840843,1713387043699,-151.63,0.00020876,2]
[322840844,1713387043708,-150.0,0.00020885,2]
[322840845,1713387043717,-4363.32298088,0.00020886,2]
[322840846,1713387043727,-150.0,0.00020892,2]
[322840847,1713387043738,-150.0,0.00020899,2]